[Event "Chinese League Div-A Rapid 2022"]
[Site "Fuling,Chongqing"]
[Date "2022.09.10"]
[Round "4.24"]
[White "Bai, Xue"]
[Black "Li, Ruofan"]
[Result "0-1"]
[ECO "C92"]
[WhiteElo "2123"]
[BlackElo "2302"]
[Annotator "RC"]
[PlyCount "114"]
[EventDate "2022.09.07"]
[EventType "team-tourn"]
[EventCountry "CHN"]
[SourceTitle "playchess.com"]
[Source "ChessBase"]
[SourceQuality "1"]
[TimeControl "1500+10"]

1. e4 {[%emt 0:00:03]} e5 {[%emt 0:00:01]} 2. Nf3 {[%emt 0:00:02]} Nc6 {[%emt 0:00:02]} 3. Bb5 {[%emt 0:00:02]} a6 {[%emt 0:00:01]} 4. Ba4 {[%emt 0:00:01]} Nf6 {[%emt 0:00:01]} 5. O-O {[%emt 0:00:03]} Be7 {[%emt 0:00:02]} 6. Re1 {[%emt 0:00:03]} b5 {[%emt 0:00:01]} 7. Bb3 {[%emt 0:00:02]} d6 {[%emt 0:00:01]} 8. c3 {[%emt 0:00:03]} O-O {[%emt 0:00:02]} 9. h3 {[%emt 0:00:03]} Bb7 {[%emt 0:00:00]} 10. d4 {[%emt 0:01:19]} Re8 {[%emt 0:00:04]} 11. Nbd2 {[%emt 0:00:10]} Bf8 {[%emt 0:00:02]} 12. Bc2 {[%emt 0:00:12]} g6 {[%emt 0:00:23]} 13. Nf1 {[%emt 0:00:15]} exd4 {[%emt 0:00:13]} 14. cxd4 {[%emt 0:00:12]} Nb4 {[%emt 0:00:02]} 15. Ng3 {[%emt 0:00:49]} Nxc2 {[%emt 0:00:30]} 16. Qxc2 {[%emt 0:00:02]} c5 {[%emt 0:00:40]} 17. d5 {[%emt 0:03:16]} Bg7 {[%emt 0:00:15]} 18. Bf4 {[%emt 0:01:14]} Qc7 {[%emt 0:02:50]} 19. Rad1 {[%emt 0:00:50]} Nd7 {[%emt 0:00:02]} 20. b3 {[%emt 0:01:10]} Rac8 {[%emt 0:01:43]} 21. Qd2 {[%emt 0:01:47]} c4 {[%emt 0:01:53]} 22. bxc4 {[%emt 0:03:48]} bxc4 {[%emt 0:00:03]} 23. Qb4 {[%emt 0:00:06]} c3 {[%emt 0:06:45]} 24. Bxd6 {[%emt 0:05:18]} a5 {[%emt 0:00:12]} 25. Bxc7 {[%emt 0:01:11]} axb4 {[%emt 0:00:02]} 26. d6 {[%emt 0:00:29]} Ra8 {[%emt 0:00:41]} 27. Rb1 {[%emt 0:02:17]} c2 {[%emt 0:02:43]} 28. Rxb4 {[%emt 0:01:11]} Bc3 {[%emt 0:00:03]} 29. Rc4 {[%emt 0:00:01]} Bxe1 {[%emt 0:00:01]} 30. Nxe1 {[%emt 0:00:02]} Rxa2 {[%emt 0:00:28]} 31. Nxc2 {[%emt 0:00:18]} Ba6 {[%emt 0:04:11]} 32. Rc3 {[%emt 0:00:07]} Rb2 {[%emt 0:01:31]} 33. Kh2 {[%emt 0:01:06]} h5 {[%emt 0:00:52]} 34. h4 {[%emt 0:00:17]} Ra8 {[%emt 0:00:49]} 35. f3 {[%emt 0:00:49]} Bb5 {[%emt 0:00:15]} 36. Na3 {[%emt 0:00:39]} Be2 {[%emt 0:00:22]} 37. Nxe2 {[%emt 0:00:13]} Rxe2 {[%emt 0:00:01]} 38. Kg3 {[%emt 0:00:09]} f5 {[%emt 0:00:23]} 39. exf5 {[%emt 0:00:21]} gxf5 {[%emt 0:00:01]} 40. Nc4 {[%emt 0:00:20]} Kf7 {[%emt 0:00:23]} 41. Kf4 {[%emt 0:00:35]} Ra4 {[%emt 0:00:30]} 42. Kxf5 {[%emt 0:00:10]} Rxg2 {[%emt 0:01:23]} 43. f4 {[%emt 0:00:19]} Rg4 {[%emt 0:00:38]} 44. Ke4 {[%emt 0:00:37]} Rxh4 {[%emt 0:00:19]} 45. Kd5 {[%emt 0:00:20]} Rxf4 {[%emt 0:00:19]} 46. Nb6 {[%emt 0:00:12]} Rad4+ {[%emt 0:00:49]} 47. Kc6 {[%emt 0:00:01]} Ne5+ {[%emt 0:00:10]} 48. Kb7 {[%emt 0:00:05]} Rg4 {[%emt 0:00:10]} 49. Kc8 {[%emt 0:00:10]} Rg8+ {[%emt 0:00:04]} 50. Kb7 {[%emt 0:00:05]} h4 {[%emt 0:00:15]} 51. Re3 {[%emt 0:00:16]} Kf6 {[%emt 0:00:13]} 52. Nc8 {[%emt 0:00:24]} Rd3 {[%emt 0:00:14]} 53. Re1 {[%emt 0:00:06]} h3 {[%emt 0:00:03]} 54. Ne7 {[%emt 0:00:12]} Rh8 {[%emt 0:00:01]} 55. Rxe5 {[%emt 0:00:09]} Kxe5 {[%emt 0:00:01]} 56. Ng6+ {[%emt 0:00:12]} Kf6 {[%emt 0:00:05]} 57. Nxh8 {[%emt 0:00:11]} h2 {[%emt 0:00:05]} 0-1

[Event "Chinese League Div-A Rapid 2022"]
[Site "Fuling,Chongqing"]
[Date "2022.09.10"]
[Round "4.25"]
[White "Zhu, Jiner"]
[Black "Wang, Yu A."]
[Result "1/2-1/2"]
[ECO "A05"]
[WhiteElo "2464"]
[BlackElo "2271"]
[Annotator "TA"]
[PlyCount "52"]
[EventDate "2022.09.07"]
[EventType "team-tourn"]
[EventCountry "CHN"]
[SourceTitle "playchess.com"]
[Source "ChessBase"]
[SourceQuality "1"]
[TimeControl "1500+10"]

{[%evp 11,52,20,25,0,12,-8,4,-12,-13,0,-14,-44,0,-12,0,-29,-34,-33,-34,-68,-71,-66,-64,-64,-37,-44,-41,-45,-20,-20,-20,-84,-48,-43,-39,-43,0,0,0,0,0,0,0]} 1. Nf3 {[%emt 0:00:07]} Nf6 {[%emt 0:00:01]} 2. g3 {[%emt 0:00:04]} b5 {[%emt 0:00:01]} 3. Bg2 {[%emt 0:00:06]} Bb7 {[%emt 0:00:01]} 4. O-O {[%emt 0:00:15]} e6 {[%emt 0:00:07]} 5. d3 {[%emt 0:00:31]} Be7 {[%emt 0:01:04]} 6. e4 {[%emt 0:00:09]} d6 {[%emt 0:00:18]} 7. Nc3 {[%emt 0:02:16] A05: Réti Opening: 1 Nf3 Nf6.} b4 {[%emt 0:02:09]} 8. Ne2 {[%emt 0:00:06]} O-O {[%emt 0:00:26] [#]} 9. c3 $146 {[%emt 0:01:35]} ({Predecessor:} 9. Nd2 Nfd7 10. d4 c5 11. c4 cxd4 12. Nxd4 Nc5 13. Re1 Nbd7 14. N2b3 Ne5 15. Qc2 {0-1 (26) Handler,L (2398)-Krejci,J (2503) Meissen 2013}) 9... c5 {[%emt 0:00:53]} 10. cxb4 {[%emt 0:02:00]} cxb4 {[%emt 0:00:02]} 11. b3 {[%emt 0:00:16]} Nc6 {[%emt 0:02:56]} 12. Bb2 {[%emt 0:00:05]} a5 {[%emt 0:00:38]} 13. Nfd4 {[%emt 0:01:44]} Nxd4 {[%emt 0:05:17]} 14. Nxd4 {[%emt 0:00:07]} d5 {[%emt 0:00:19][%cal Rd5e4]} 15. Re1 {[%emt 0:03:59]} dxe4 {[%emt 0:04:26]} 16. dxe4 {[%emt 0:00:07]} Bc5 {[%emt 0:00:08] And now ...Qb6 would win.} (16... Qb6 $5 {[%cal Re7c5]} 17. e5 Nd5 $15) 17. Nc2 {[%emt 0:06:21]} Qxd1 {[%emt 0:00:53]} (17... Rc8 {is interesting.} 18. Qe2 Ba6 19. Qxa6 Bxf2+ 20. Kh1 Rxc2 21. Re2 Qc8) 18. Raxd1 {[%emt 0:00:03]} Rfd8 {[%emt 0:00:29]} 19. e5 {[%emt 0:04:31]} Bxg2 {[%emt 0:01:36]} 20. Kxg2 {[%emt 0:00:11]} Nd5 {[%emt 0:00:17]} 21. Bd4 {[%emt 0:00:16]} (21. Kf3 $11 {remains equal.}) 21... Bxd4 {[%emt 0:00:18]} 22. Rxd4 {[%emt 0:00:49]} Nc3 {[%emt 0:00:08]} 23. a4 {[%emt 0:00:31]} bxa3 {[%emt 0:01:05] [#] ...Rxd4 is the strong threat.} 24. Rxd8+ {[%emt 0:00:04] The position is equal.} Rxd8 {[%emt 0:00:01]} 25. Nxa3 {[%emt 0:00:03]} Rb8 {[%emt 0:00:38]} 26. Nc4 {[%emt 0:00:15]} Rxb3 {[%emt 0:00:19] Weighted Error Value: White=0.18 (very precise) /Black=0.12 (very precise)} 1/2-1/2

[Event "Chinese League Div-A Rapid 2022"]
[Site "Fuling,Chongqing"]
[Date "2022.09.10"]
[Round "4.26"]
[White "Xue, Haowen"]
[Black "Wei, Yi"]
[Result "0-1"]
[ECO "B07"]
[WhiteElo "2128"]
[BlackElo "2727"]
[Annotator "TA"]
[PlyCount "82"]
[EventDate "2022.09.07"]
[EventType "team-tourn"]
[EventCountry "CHN"]
[SourceTitle "playchess.com"]
[Source "ChessBase"]
[SourceQuality "1"]
[TimeControl "1500+10"]

{[%evp 14,82,39,36,59,15,52,23,30,21,21,30,19,20,29,0,26,0,22,14,20,20,24,11,11,4,56,44,61,25,31,23,63,57,72,64,47,45,84,0,8,-27,-29,-18,42,0,208,0,0,-103,0,-182,-154,-181,-179,-368,-322,-334,-304,-260,-288,-601,-592,-877,-870,-837,-777,-2902,-3036,-29990,-29991]} 1. d4 {[%emt 0:00:02] ChessBase II} g6 {[%emt 0:00:07]} 2. e4 {[%emt 0:00:05]} Bg7 {[%emt 0:00:02]} 3. c3 {[%emt 0:00:13]} d6 {[%emt 0:00:13]} 4. Nf3 {[%emt 0:00:06]} Nf6 {[%emt 0:01:13]} 5. Bd3 {[%emt 0:00:09]} O-O {[%emt 0:00:03]} 6. O-O {[%emt 0:00:03]} Nc6 {[%emt 0:00:07]} 7. h3 {[%emt 0:00:36]} e5 {[%emt 0:00:04]} 8. Re1 {[%emt 0:00:20]} Qe8 $5 {[%emt 0:01:02][%mdl 4] [#] A promising side line. B07: Pirc Defence: Miscellaneous Systems.} 9. Nbd2 $146 {[%emt 0:02:28]} ({Predecessor:} 9. Bg5 Nh5 10. Na3 h6 11. Be3 Qe7 12. Nc2 Qf6 13. Bf1 Kh7 14. Kh2 Re8 15. Nd2 d5 16. exd5 exd4 17. Nxd4 Nxd4 18. Bxd4 {½-½ (31) Ragger,M (2672)-Todorov,T (2477) Brest 2018 EXT 2019 [ChessBase II]}) 9... Nh5 {[%emt 0:00:21][%cal Re5d4]} 10. d5 {[%emt 0:02:03]} Ne7 {[%emt 0:02:12] White has an edge.} 11. a4 {[%emt 0:01:03]} a5 {[%emt 0:02:51]} 12. Bb5 {[%emt 0:02:59]} Qd8 {[%emt 0:01:34]} 13. Bf1 {[%emt 0:01:13]} Bd7 {[%emt 0:00:52]} 14. Nc4 {[%emt 0:02:45]} Qe8 {[%emt 0:00:02]} 15. b3 {[%emt 0:01:08]} Kh8 {[%emt 0:03:09]} 16. Ba3 {[%emt 0:01:12]} Nf4 {[%emt 0:00:42]} 17. Ra2 {[%emt 0:02:03]} f6 {[%emt 0:02:19]} 18. Kh2 {[%emt 0:01:23]} g5 {[%emt 0:01:45]} 19. g3 {[%emt 0:01:06]} Nfg6 {[%emt 0:00:03]} (19... Nxh3 $1 $11 20. Bxh3 Bxh3 21. Kxh3 g4+ 22. Kxg4 Qd7+ 23. Kh4 Ng6+ 24. Kh5 f5) 20. Nfd2 $14 {[%emt 0:02:03]} h6 {[%emt 0:04:42]} 21. Be2 {[%emt 0:02:55]} f5 {[%emt 0:02:06]} 22. exf5 {[%emt 0:00:20]} Nxd5 {[%emt 0:00:03]} 23. Ne4 {[%emt 0:01:04]} ({Not} 23. fxg6 $2 Nxc3 24. Qc1 Rxf2+ 25. Kg1 Rxe2 $19) 23... Nge7 {[%emt 0:00:02][%cal Bg6e7,Be7d5,Bd5f6][%mdl 32]} 24. g4 {[%emt 0:01:11]} (24. Bh5 Qd8 $11) 24... Nf4 {[%emt 0:00:35]} 25. Bf3 {[%emt 0:00:13][%cal Oc4d6]} Bc6 {[%emt 0:00:24]} 26. Ng3 {[%emt 0:00:12]} (26. Rd2 $16) 26... Qf7 {[%emt 0:00:21]} 27. Rd2 {[%emt 0:00:19]} Ned5 {[%emt 0:00:09]} 28. Bb2 {[%emt 0:00:19]} Ra6 {[%emt 0:00:43]} ({Better is} 28... Nf6 $11) 29. Nh5 {[%emt 0:00:13]} Bf6 $2 {[%emt 0:01:18]} (29... Nxh5 $11 30. Bxd5 Bxd5 31. Rxd5 Nf4 32. Rxa5 Re8) 30. Nxf6 $2 {[%emt 0:00:10]} ({White has to play} 30. Bxd5 $18 Nxd5 31. Nxd6 $1 cxd6 32. c4) 30... Nxf6 $11 {[%emt 0:00:02]} 31. Re3 {[%emt 0:00:12]} (31. Nxe5 $11 dxe5 32. Bxc6 Rxc6 33. c4) 31... Kg7 {[%emt 0:00:18] Black is more active.} (31... h5 $17 {Strongly threatening ...Bxf3.} 32. Bxc6 Rxc6) 32. Ba3 $2 {[%emt 0:00:10] [#]} (32. Nxe5 $11 dxe5 33. Bxc6 Rxc6 34. c4) 32... h5 $1 $19 {[%emt 0:00:16] And now ...Bxf3 would win.} 33. Bxc6 {[%emt 0:00:09]} Rxc6 {[%emt 0:00:10]} ({But not} 33... bxc6 34. Nxe5 dxe5 35. Bxf8+ Qxf8 36. Rxe5 $16) 34. f3 $2 {[%emt 0:00:11]} (34. gxh5 Rh8 35. Nxa5) 34... hxg4 {[%emt 0:00:25] The board is on fire.} 35. fxg4 {[%emt 0:00:08]} Rxc4 {[%emt 0:00:06]} 36. bxc4 {[%emt 0:00:02]} Qxc4 {[%emt 0:00:02]} 37. Qf3 $2 {[%emt 0:00:20]} (37. Bc1) 37... Rh8 {[%emt 0:00:01]} 38. Qd1 {[%emt 0:00:11]} Rh4 {[%emt 0:00:16]} 39. Rg3 {[%emt 0:00:09]} Ne4 {[%emt 0:00:18] Pair of Knights!} 40. Bxd6 {[%emt 0:00:11]} cxd6 {[%emt 0:00:06]} 41. Rxd6 {[%emt 0:00:10]} Qa2+ {[%emt 0:00:02] Weighted Error Value: White=0.89/Black=0.27 (precise)} 0-1

[Event "Chinese League Div-A Rapid 2022"]
[Site "Fuling,Chongqing"]
[Date "2022.09.10"]
[Round "4.27"]
[White "Wen, Yang"]
[Black "Xu, Jun"]
[Result "1/2-1/2"]
[ECO "E18"]
[WhiteElo "2588"]
[BlackElo "2474"]
[Annotator "TA"]
[PlyCount "50"]
[EventDate "2022.09.07"]
[EventType "team-tourn"]
[EventCountry "CHN"]
[SourceTitle "playchess.com"]
[Source "ChessBase"]
[SourceQuality "1"]
[TimeControl "1500+10"]

{[%evp 20,50,14,18,10,9,9,16,9,20,10,18,17,14,12,8,11,12,8,8,8,8,12,7,14,0,7,5,6,0,0,0,4]} 1. d4 {[%emt 0:00:04]} Nf6 {[%emt 0:00:08]} 2. c4 {[%emt 0:00:05]} e6 {[%emt 0:00:08]} 3. Nf3 {[%emt 0:00:04]} b6 {[%emt 0:00:12]} 4. g3 {[%emt 0:00:59]} Bb7 {[%emt 0:00:08]} 5. Bg2 {[%emt 0:00:03]} Be7 {[%emt 0:00:06]} 6. O-O {[%emt 0:00:41]} O-O {[%emt 0:00:21]} 7. Nc3 {[%emt 0:01:19]} Ne4 {[%emt 0:00:34]} 8. Nxe4 {[%emt 0:01:09]} Bxe4 {[%emt 0:00:09]} 9. Ne1 {[%emt 0:00:07]} Bxg2 {[%emt 0:00:44]} 10. Nxg2 {[%emt 0:00:03]} d6 {[%emt 0:03:18]} 11. b3 {[%emt 0:01:44] The position is equal.} Bf6 {[%emt 0:05:04] E18: Queen's Indian: Old Main Line (4 g3 Bb7 5 Bg2 Be7 6 0-0 0-0 7 Nc3).} 12. Bb2 {[%emt 0:03:36]} c5 {[%emt 0:00:42]} 13. Rb1 {[%emt 0:01:53]} cxd4 {[%emt 0:04:15]} 14. Bxd4 {[%emt 0:00:05] [#]} Bxd4 $146 {[%emt 0:00:07]} ({Predecessor:} 14... Nd7 15. Qd2 Rc8 16. Rfd1 Rc6 17. Bxf6 Nxf6 18. Ne3 Qb8 19. Qb4 a5 {½-½ (19) Andersson,U (2605)-Karpov,A (2720) Mar del Plata 1982}) 15. Qxd4 {[%emt 0:00:04]} Nc6 {[%emt 0:00:05]} 16. Qd2 {[%emt 0:02:36]} Qc7 {[%emt 0:00:31]} 17. Rbc1 {[%emt 0:00:26]} Rfd8 {[%emt 0:00:08]} 18. Rfd1 {[%emt 0:00:05]} d5 {[%emt 0:01:10]} 19. cxd5 {[%emt 0:05:19]} Rxd5 {[%emt 0:00:11]} 20. Qc3 {[%emt 0:00:16] [#] Strongly threatening Rxd5.} Rc5 {[%emt 0:00:15]} 21. Qe3 {[%emt 0:01:40]} Rd8 {[%emt 0:02:53]} 22. Ne1 {[%emt 0:02:36]} Rxc1 {[%emt 0:00:39]} 23. Rxc1 {[%emt 0:00:22]} Rd6 {[%emt 0:01:12]} 24. Nf3 {[%emt 0:00:08]} Qd7 {[%emt 0:00:16]} 25. Kg2 {[%emt 0:00:12]} h6 {[%emt 0:00:10] Not much happened in this game.  Weighted Error Value: White=0.02 (flawless) /Black=0.01 (flawless)} 1/2-1/2

[Event "Chinese League Div-A Rapid 2022"]
[Site "Fuling,Chongqing"]
[Date "2022.09.10"]
[Round "4.28"]
[White "Xu, Yinglun"]
[Black "Chen, Qi b"]
[Result "1/2-1/2"]
[ECO "D63"]
[WhiteElo "2549"]
[BlackElo "2485"]
[Annotator "TA"]
[PlyCount "48"]
[EventDate "2022.09.07"]
[EventType "team-tourn"]
[EventCountry "CHN"]
[SourceTitle "playchess.com"]
[Source "ChessBase"]
[SourceQuality "1"]
[TimeControl "1500+10"]

{[%evp 14,48,20,9,10,18,31,31,29,24,25,24,36,35,35,32,39,38,34,27,63,59,61,79,99,45,45,28,51,29,27,23,22,0,26,0,24]} 1. d4 {[%emt 0:00:04]} Nf6 {[%emt 0:00:02]} 2. c4 {[%emt 0:00:06]} e6 {[%emt 0:00:01]} 3. Nf3 {[%emt 0:00:15]} d5 {[%emt 0:00:03]} 4. Nc3 {[%emt 0:00:13]} Nbd7 {[%emt 0:00:03][%cal Bb8d7,Bd7c5,Bc5e4][%mdl 32]} 5. Bg5 {[%emt 0:01:15][%cal Bc1g5,Bg5h4,Bh4g3][%mdl 32]} h6 {[%emt 0:01:54]} 6. Bh4 {[%emt 0:00:26]} Be7 {[%emt 0:00:11]} 7. e3 {[%emt 0:00:59]} O-O {[%emt 0:00:05]} 8. Rc1 {[%emt 0:01:31]} c5 {[%emt 0:01:53] D63: Queen's Gambit Declined: Classical: 7 Rc1.} 9. dxc5 {[%emt 0:01:38]} Nxc5 {[%emt 0:00:47]} 10. cxd5 {[%emt 0:00:57]} g5 {[%emt 0:00:27] White is slightly better.} 11. Bg3 {[%emt 0:00:04] [#] Strongly threatening d6.} Nxd5 {[%emt 0:00:13]} 12. Nxd5 {[%emt 0:01:12]} Qxd5 {[%emt 0:00:04]} (12... exd5 {looks sharper.} 13. Be5 Ne4 14. Bd3 Bb4+) 13. Qxd5 {[%emt 0:00:09]} exd5 {[%emt 0:00:03]} 14. Be2 {[%emt 0:02:29]} Ne4 {[%emt 0:03:27]} 15. Nd4 {[%emt 0:01:14] [#]} Bd7 $146 {[%emt 0:01:49]} ({Predecessor:} 15... Bb4+ 16. Kd1 Re8 17. Bb5 Re7 18. Ke2 Nxg3+ 19. hxg3 Kg7 20. a3 Ba5 21. Rxc8 Rxc8 {½-½ (32) Wojtaszek,R (2741)-Lupulescu,C (2626) Germany 2016}) 16. f3 {[%emt 0:01:57]} Bb4+ {[%emt 0:03:56]} 17. Kd1 $1 {[%emt 0:00:50]} Nxg3 {[%emt 0:01:30]} 18. hxg3 {[%emt 0:00:06]} Kg7 {[%emt 0:01:03]} 19. Bd3 {[%emt 0:04:06]} ({White should try} 19. Rc7 $16 Rfd8 20. Rxb7) 19... Rac8 $14 {[%emt 0:00:13]} 20. Rxc8 {[%emt 0:02:47]} Rxc8 {[%emt 0:00:03]} 21. g4 {[%emt 0:02:22] And now Bf5 would win.} (21. Bf5 $5 {[%cal Rf5d7]} Rd8 22. Bxd7 Rxd7 23. Kc2 $14) 21... Bc5 {[%emt 0:00:30]} 22. Kd2 {[%emt 0:00:34]} Bb4+ {[%emt 0:00:02]} 23. Kd1 {[%emt 0:00:56] Bf5 is the strong threat.} (23. Ke2 $5 {[%cal Rd3f5]}) 23... Bc5 {[%emt 0:00:12]} 24. Kd2 {[%emt 0:01:24]} Bb4+ {[%emt 0:00:17] Weighted Error Value: White=0.10 (very precise) /Black=0.06 (flawless)} 1/2-1/2

[Event "Chinese League Div-A Rapid 2022"]
[Site "Fuling,Chongqing"]
[Date "2022.09.10"]
[Round "4.29"]
[White "Yuan, Ye"]
[Black "Song, Yuxin"]
[Result "1/2-1/2"]
[ECO "D30"]
[WhiteElo "2108"]
[BlackElo "2317"]
[Annotator "RC"]
[PlyCount "55"]
[EventDate "2022.09.07"]
[EventType "team-tourn"]
[EventCountry "CHN"]
[SourceTitle "playchess.com"]
[Source "ChessBase"]
[SourceQuality "1"]
[TimeControl "1500+10"]

1. d4 {[%emt 0:00:01]} Nf6 {[%emt 0:00:01]} 2. c4 {[%emt 0:00:04]} e6 {[%emt 0:00:02]} 3. Nf3 {[%emt 0:00:05]} d5 {[%emt 0:00:01]} 4. Bg5 {[%emt 0:00:02]} dxc4 {[%emt 0:00:18]} 5. Qa4+ {[%emt 0:00:01]} Nbd7 {[%emt 0:00:12]} 6. e4 {[%emt 0:00:03]} Be7 {[%emt 0:02:24]} 7. Nc3 {[%emt 0:01:57]} O-O {[%emt 0:01:12]} 8. Qxc4 {[%emt 0:00:39]} c5 {[%emt 0:00:46]} 9. dxc5 {[%emt 0:01:50]} Nxc5 {[%emt 0:00:54]} 10. Bxf6 {[%emt 0:01:01]} gxf6 {[%emt 0:00:02]} 11. Be2 {[%emt 0:02:58]} Bd7 {[%emt 0:02:17]} 12. e5 {[%emt 0:00:24]} Rc8 {[%emt 0:00:58]} 13. O-O {[%emt 0:00:41]} f5 {[%emt 0:01:40]} 14. Qf4 {[%emt 0:01:05]} Kh8 {[%emt 0:04:37]} 15. Rfd1 {[%emt 0:00:31]} Rg8 {[%emt 0:00:44]} 16. h3 {[%emt 0:00:39]} Qe8 {[%emt 0:00:23]} 17. Nd4 {[%emt 0:02:22]} Na4 {[%emt 0:02:20]} 18. Nxa4 {[%emt 0:00:44]} Bxa4 {[%emt 0:00:01]} 19. b3 {[%emt 0:00:25]} Bc6 {[%emt 0:00:00]} 20. Nxc6 {[%emt 0:01:09]} Qxc6 {[%emt 0:00:01]} 21. Bf3 {[%emt 0:00:05]} Qc7 {[%emt 0:02:42]} 22. Rac1 {[%emt 0:01:13]} Qb8 {[%emt 0:00:01]} 23. Rxc8 {[%emt 0:00:31]} Qxc8 {[%emt 0:00:14]} 24. Qc4 {[%emt 0:03:45]} Qxc4 {[%emt 0:00:50]} 25. bxc4 {[%emt 0:00:01]} Rd8 {[%emt 0:00:00]} 26. Rxd8+ {[%emt 0:00:11]} Bxd8 {[%emt 0:00:01]} 27. Bxb7 {[%emt 0:00:03]} f4 {[%emt 0:00:01]} 28. g3 {[%emt 0:01:34]} 1/2-1/2